Cogmind - Beta 13 @@@ ROGUE MODE // 2024.05.17 @ 17:03:28 Player: CONM Result: Destroyed by Y-54 Guardian with Gatling Laser Performance ------------- Evolutions (4) 2000 Regions Visited (8) 1600 Robots Destroyed (63) 315 Value Destroyed (1811) 1811 Prototype IDs (0) 0 Alien Tech Used (0) 0 Bonus (533) 533 TOTAL SCORE: 6259 Bonus ------- Follower Combat Kills 33 Entered DSFs 500 Cogmind --------- Core Integrity 0/850 Matter 128/300 Energy 68/100 System Corruption 2% Temperature Cool (6) Movement Core (50) Location -6/Extension Parts ------- > --- POWER (2) -------- (None) > --- PROPULSION (4) --- (None) > --- UTILITY (7) ------ Medium Storage Unit Advanced Weight Redist. System Improved Targeting Computer Target Analyzer > --- WEAPON (2) ------- (None) > --- INVENTORY (10) --- Light Angular Momentum Engine Improved Grenade Launcher Flail Peak State ------------ > --- POWER ------------ Light Deuterium Engine Light Nuclear Core > --- PROPULSION ------- Cesium-ion Thruster Xenon Bombardment Thruster Xenon Bombardment Thruster Xenon Bombardment Thruster > --- UTILITY ---------- Compact Battery Advanced Weight Redist. System Seismic Detector Improved Targeting Computer Improved Propulsion Shielding Improved Utility Shielding Hardened Light Armor Plating > --- WEAPON ----------- Missile Launcher Flail > --- INVENTORY -------- Cesium-ion Thruster Cesium-ion Thruster Advanced Weight Redist. System Improved Grenade Launcher [Rating: 44] Favorites ----------- Power Improved Ion Engine Engine Improved Ion Engine Power Core Light Nuclear Core Propulsion Aluminum Leg Treads Advanced Treads Leg Aluminum Leg Wheel Wheel Flight Unit Xenon Bombardment Thruster Utility Large Storage Unit Device Sensor Array Storage Large Storage Unit Processor Improved Targeting Computer Protection Medium Armor Plating Weapon Assault Rifle Energy Gun Beam Rifle Energy Cannon Beam Cannon Ballistic Gun Assault Rifle Launcher Missile Launcher Special Weapon Mining Laser Impact Weapon Flail Special Melee Weapon Datajack Build | -11 -10 -10 -9 -8 -7 -7 -6 -6 ------- Run | Yrd Mat Min Mat Mat Fac DSF Fac Ext Slots Evolved 8 | . . . 2 2 2 . 2 . Power 1 | . . . . . . . 1 . Propulsion 2 | . . . 1 . 1 . . . Utility 5 | . . . 1 2 1 . 1 . Weapon . | . . . . . . . . . Parts Attached 101 | 7 24 2 29 20 7 1 5 6 Power 10 | 1 4 . 1 1 1 . 1 1 Engine 7 | 1 4 . 1 . 1 . . . Core 3 | . . . . 1 . . 1 1 Reactor . | . . . . . . . . . Propulsion 26 | 2 5 1 7 4 5 . . 2 Treads 11 | 2 1 . 7 1 . . . . Leg 2 | . 2 . . . . . . . Wheel 3 | . 2 1 . . . . . . Hover . | . . . . . . . . . Flight 10 | . . . . 3 5 . . 2 Utility 31 | 2 3 . 8 11 1 1 4 1 Device 15 | . 2 . 5 6 . . 1 1 Storage 6 | 2 1 . 1 . . . 2 . Processor 5 | . . . 1 3 . . 1 . Hackware . | . . . . . . . . . Protection 5 | . . . 1 2 1 1 . . Artifact . | . . . . . . . . . Weapon 34 | 2 12 1 13 4 . . . 2 Energy Gun 5 | 1 1 . 1 2 . . . . Energy Cannon 1 | . . . 1 . . . . . Ballistic Gun 7 | 1 3 . 3 . . . . . Ballistic Cannon . | . . . . . . . . . Launcher 8 | . . 1 4 1 . . . 2 Special Weapon 1 | . 1 . . . . . . . Impact Weapon 9 | . 4 . 4 1 . . . . Slashing Weapon . | . . . . . . . . . Piercing Weapon . | . . . . . . . . . Special Melee Weapon 3 | . 3 . . . . . . . Unidentified Prototypes . | . . . . . . . . . Parts Lost 34 | . 8 1 5 7 . . . 13 Power 6 | . 2 . . 1 . . . 3 Propulsion 13 | . 3 . 1 3 . . . 6 Utility 7 | . . 1 2 1 . . . 3 Weapon 8 | . 3 . 2 2 . . . 1 Highest Loss Streak 13 | . 3 1 2 7 . . . 13 To Critical Strikes . | . . . . . . . . . Average Slot Usage (%) 93 | . 90 94 96 95 98 98 90 82 Engine 10 | . 13 14 11 5 4 7 6 4 Treads 10 | . 5 . 21 18 . . . . Leg 9 | . 19 14 2 . . . . . Wheel 3 | . 1 14 6 . . . . . Flight 4 | . . . . 7 29 30 26 24 Device 12 | . 11 8 10 19 23 15 13 12 Storage 12 | . 16 14 11 6 . . 5 6 Processor 4 | . . . 6 15 7 7 6 13 Protection 2 | . . . 3 2 14 21 10 5 Energy Gun 3 | . 3 . 4 12 . . . . Energy Cannon 1 | . . . 4 . . . . . Ballistic Gun 9 | . 13 14 8 . . . . . Launcher 2 | . . 11 1 2 7 7 6 5 Impact Weapon 3 | . 3 2 3 2 7 7 6 1 Naked Turns . | . . . . . . . . . Heaviest Build 57 | 15 32 33 54 57 22 23 31 31 Greatest Support 66 | 40 40 10 66 66 29 29 32 32 Greatest Overweight (x) 3 | . 2 3 3 2 . . . 3 Average Overweight (x) . | . . 3 . . . . . . Largest Inventory Capacity 20 | 8 15 15 20 20 5 5 10 10 Average Capacity 13 | 7 11 15 16 16 5 5 8 10 Most Carried 20 | 6 15 15 20 20 5 5 6 7 Average Carried 11 | 3 10 14 14 15 4 5 4 6 Final Capacity 20 | 8 15 15 20 5 5 5 10 10 Final Carried 20 | 6 15 15 20 5 5 5 6 3 Class Distribution -------------------- 59% | Mutant 24% | Scavenger-Mutant 15% | Sprinter Dominant Class ---------------- Mutant | -10/Materials Mutant | -10/Mines Mutant | -9/Materials Scavenger-Mutant | -8/Materials Sprinter | -7/Factory Sprinter | -7/DSF Sprinter | -6/Factory Sprinter | -6/Extension Resources | -11 -10 -10 -9 -8 -7 -7 -6 -6 ----------- Run | Yrd Mat Min Mat Mat Fac DSF Fac Ext Matter Collected 1572 | 320 345 146 467 155 10 . . 129 Remotely 82 | . . . 82 . . . . . Salvage Created 1847 | 79 456 166 796 273 10 . . 67 Parts 108 | 11 26 5 47 15 . . . 4 Haulers Intercepted 4 | . 2 . 2 . . . . . Recyclers Shooed 3 | . 3 . . . . . . . Parts Field Recycled . | . . . . . . . . . Retrieved Matter . | . . . . . . . . . Parts Self-Destructed . | . . . . . . . . . Prevented . | . . . . . . . . . Kills | -11 -10 -10 -9 -8 -7 -7 -6 -6 ------- Run | Yrd Mat Min Mat Mat Fac DSF Fac Ext Combat Hostiles Destroyed 44 | . 10 4 20 7 . . . 3 Melee 1 | . . . . 1 . . . . Guns 23 | . 9 1 7 6 . . . . Cannons 6 | . 1 . 5 . . . . . AOE 12 | . . 3 6 . . . . 3 Classes Destroyed 11 | 2 5 . 2 1 . . . 1 Worker 5 | 2 . 1 . . 1 . . 1 Builder 2 | . . . 2 . . . . . Tunneler 5 | 3 1 1 . . . . . . Hauler 4 | . 2 . 2 . . . . . Operator 1 | . 1 . . . . . . . Watcher 2 | . 1 . 1 . . . . . Swarmer 4 | . 2 . . 2 . . . . Grunt 31 | . 8 4 17 2 . . . . Brawler 3 | . . . . . . . . 3 Sentry 5 | . . . 3 2 . . . . Hunter 1 | . . . . 1 . . . . Best Kill Streak 4 | 2 2 2 3 3 1 . . 4 Combat Bots Only 3 | . 2 2 3 3 . . . 3 Max Kills in Single Turn 2 | 2 1 1 2 2 1 . . 2 Gunslinging 1 | . . . . 1 . . . . Exploded 2 | . . 1 2 . . . . 2 Melee 1 | . . . . 1 . . . . Uniques/NPCs Destroyed . | . . . . . . . . . Combat | -11 -10 -10 -9 -8 -7 -7 -6 -6 -------- Run | Yrd Mat Min Mat Mat Fac DSF Fac Ext Hostile Shots Fired 564 | . 125 15 126 83 . 1 9 205 Missed 179 | . 29 6 37 23 . 1 5 78 Damage Taken 5218 | . 1079 119 1430 872 . . 33 1685 Core 1420 | . 206 33 153 177 . . . 851 Absorbed by Shields 102 | . . . . . . . . 102 Redirected to Shielding 116 | . . . . 11 . . . 105 Regen/Repaired (Parts) 75 | . . . 58 . 17 . . . Core Remaining (%) 66 | 100 . 4 61 67 . 100 . . Volleys Fired 204 | 10 91 6 67 18 . . . 12 Largest 2 | 2 2 2 2 2 . . . 2 Hottest 165 | 60 165 50 116 112 . . . 72 Shots Fired 309 | 20 112 12 122 30 . . . 13 Gun 236 | 20 107 6 73 30 . . . . Cannon 39 | . . . 39 . . . . . Launcher 29 | . . 6 10 . . . . 13 Special 5 | . 5 . . . . . . . Kinetic 105 | 10 55 6 34 . . . . . Thermal 175 | 10 57 . 78 30 . . . . Explosive 29 | . . 6 10 . . . . 13 Electromagnetic . | . . . . . . . . . Robot Hit Streak 23 | 8 20 23 12 5 . . . 6 Robot Miss Streak 4 | 2 2 1 4 2 . . . 1 Penetration Max . | . . . . . . . . . Secondary Targets 1 | . . . . 1 . . . . Max Gunslinging Chain 1 | . . . . 1 . . . . Shots Hit Robots 215 | 13 84 11 77 22 1 . . 7 Core Hits 106 | 6 27 8 37 12 1 . . 15 Critical Kills 1 | . . . 1 . . . . . Critical Parts Destroyed 1 | . . 1 . . . . . . Critical Strikes 6 | . . 1 4 1 . . . . Burn 4 | . . . 3 1 . . . . Destroy 1 | . . . 1 . . . . . Smash 1 | . . 1 . . . . . . Melee Attacks 30 | . 8 2 10 4 3 . 3 . Impact 30 | . 8 2 10 4 3 . 3 . Slashing . | . . . . . . . . . Piercing . | . . . . . . . . . Sneak Attacks 6 | . 3 2 . . 1 . . . Combat Hostiles . | . . . . . . . . . Follow-up Attacks . | . . . . . . . . . Damage Inflicted 5384 | 187 1264 522 1835 324 60 . . 1192 Guns 2163 | 187 949 64 644 319 . . . . Cannons 404 | . . . 404 . . . . . Explosions 2231 | . . 278 761 . . . . 1192 Melee 516 | . 276 180 . . 60 . . . Ramming 46 | . 15 . 26 5 . . . . Kinetic 878 | 89 444 64 281 . . . . . Thermal 1911 | 98 529 . 965 319 . . . . Explosive 2033 | . . 278 563 . . . . 1192 Electromagnetic . | . . . . . . . . . Impact 516 | . 276 180 . . 60 . . . Slashing . | . . . . . . . . . Piercing . | . . . . . . . . . Highest Corruption 2 | . . . . . . . 2 2 Average Corruption 2 | . . . . . . . 2 2 Corruption Purged . | . . . . . . . . . Corruption Blocked . | . . . . . . . . . Effects 4 | . . . . . . . 1 3 Message Errors 1 | . . . . . . . 1 . Matter Fused 2 | . . . . . . . . 2 Heat Flow Errors 1 | . . . . . . . . 1 Overload Shots . | . . . . . . . . . Overflow Damage 441 | . 68 176 197 . . . . . Projectiles . | . . . . . . . . . Explosions 233 | . . 36 197 . . . . . Melee 208 | . 68 140 . . . . . . Knockbacks 3 | . 1 2 . . . . . . Impact 3 | . 1 2 . . . . . . Kinetic . | . . . . . . . . . Secondary . | . . . . . . . . . Self-Inflicted Damage 341 | . 3 . 271 . . . . 67 Shots 7 | . . . 4 . . . . 3 Rammed 11 | . 8 . 1 2 . . . . Targets Rammed 13 | . 8 . 2 3 . . . . Kicked . | . . . . . . . . . Crushed 2 | . . . 1 1 . . . . Highest Temperature 385 | . 368 9 385 261 . . 72 93 Average Temperature 113 | . 133 4 140 85 . . 30 13 Received Heat Transfer 1945 | . 546 66 567 351 . . 12 403 Effects 9 | . 5 . 4 . . . . . Shutdowns 1 | . 1 . . . . . . . Energy Bleed 2 | . 1 . 1 . . . . . Interference 4 | . 1 . 3 . . . . . Matter Decay 1 | . 1 . . . . . . . Short Circuit 1 | . 1 . . . . . . . Siege Activations . | . . . . . . . . . Robots Corrupted . | . . . . . . . . . Combat Hostiles . | . . . . . . . . . Parts Fried 5 | . 2 3 . . . . . . Impact Corruptions 8 | . 3 5 . . . . . . Robots Melted 2 | . . . 2 . . . . . Combat Hostiles 2 | . . . 2 . . . . . Parts Melted 9 | . 1 . 6 2 . . . . Heat Transferred 4458 | 225 1247 . 2098 888 . . . . Parts Sabotaged . | . . . . . . . . . Parts Stolen . | . . . . . . . . . Parts Stripped . | . . . . . . . . . Power Chain Reactions . | . . . . . . . . . Alert | -11 -10 -10 -9 -8 -7 -7 -6 -6 ------- Run | Yrd Mat Min Mat Mat Fac DSF Fac Ext Peak Influence 334 | 25 254 189 334 297 142 132 116 306 Initial 126 | . 16 18 . 126 109 102 69 56 Average 123 | 7 51 103 207 215 132 109 81 173 Maximum Alert Level 1 | . 1 . 1 1 . . . 1 Low Security (%) 73 | 100 95 100 44 29 100 100 100 41 Level 1 26 | . 4 . 55 70 . . . 58 Level 2 . | . . . . . . . . . Level 3 . | . . . . . . . . . Level 4 . | . . . . . . . . . Level 5 . | . . . . . . . . . High Security . | . . . . . . . . . Max Security . | . . . . . . . . . Squads Dispatched 7 | . 2 . 3 1 . . . 1 Investigation 1 | . . . 1 . . . . . Extermination . | . . . . . . . . . Reinforcement 6 | . 2 . 2 1 . . . 1 Assault . | . . . . . . . . . Garrison . | . . . . . . . . . Intercept . | . . . . . . . . . Searches Triggered . | . . . . . . . . . Construction Impeded 1 | . . . . . . . . 1 Haulers Reinforced . | . . . . . . . . . Active Scanning Responses . | . . . . . . . . . Cargo Convoy Interrupts . | . . . . . . . . . Stealth | -11 -10 -10 -9 -8 -7 -7 -6 -6 --------- Run | Yrd Mat Min Mat Mat Fac DSF Fac Ext Distress Signals 4 | . 1 . . 2 . . . 1 Communications Jammed . | . . . . . . . . . Distress Signals . | . . . . . . . . . Times Spotted 120 | . 29 6 30 22 1 2 1 29 Peak Tracking Total 22 | . 5 2 4 7 1 1 1 22 Tactical Retreats 12 | . 4 1 1 2 . 2 . 2 Traps | -11 -10 -10 -9 -8 -7 -7 -6 -6 ------- Run | Yrd Mat Min Mat Mat Fac DSF Fac Ext Traps Triggered 7 | . . . . . . 1 1 5 Indirectly . | . . . . . . . . . Trap Hack Attempts . | . . . . . . . . . Triggered . | . . . . . . . . . Disarmed . | . . . . . . . . . Reprogrammed . | . . . . . . . . . Reused . | . . . . . . . . . Traps Extracted . | . . . . . . . . . Installed . | . . . . . . . . . Triggered . | . . . . . . . . . Machines | -11 -10 -10 -9 -8 -7 -7 -6 -6 ---------- Run | Yrd Mat Min Mat Mat Fac DSF Fac Ext Machines Disabled 7 | . . . 5 . . . . 2 Max in Single Turn 2 | . . . 2 . . . . 1 Machines Repaired . | . . . . . . . . . Machines Dismantled . | . . . . . . . . . Machines Sabotaged . | . . . . . . . . . Overloaded Fab Kills . | . . . . . . . . . Hacking | -11 -10 -10 -9 -8 -7 -7 -6 -6 --------- Run | Yrd Mat Min Mat Mat Fac DSF Fac Ext Machines Accessed 15 | . 6 . 3 3 2 . . 1 Terminals 12 | . 5 . 2 3 1 . . 1 Fabricators . | . . . . . . . . . Repair Stations 2 | . . . 1 . 1 . . . Recycling Units 1 | . 1 . . . . . . . Scanalyzers . | . . . . . . . . . Garrison Access . | . . . . . . . . . Total Hacks 35 | . 12 . 9 8 4 . . 2 Successful 14 | . 5 . 3 3 3 . . . Failed 21 | . 7 . 6 5 1 . . 2 Catastrophic 3 | . . . 1 2 . . . . Database Lockouts . | . . . . . . . . . Manual 15 | . 5 . 4 5 . . 1 . Terminals 27 | . 11 . 4 8 2 . . 2 Fabricators . | . . . . . . . . . Repair Stations 7 | . . . 5 . 2 . . . Recycling Units 1 | . 1 . . . . . . . Scanalyzers . | . . . . . . . . . Garrison Access . | . . . . . . . . . Terminal Hacks 9 | . 4 . 1 3 1 . . . Record 1 | . . . . 1 . . . . Open DSF 1 | . . . . . 1 . . . Level Access Points 1 | . . . . 1 . . . . Terminal Index 3 | . 1 . 1 1 . . . . Locate Traps 1 | . 1 . . . . . . . Transport Status 1 | . 1 . . . . . . . Zone Layout 1 | . 1 . . . . . . . Fabricator Hacks . | . . . . . . . . . Repair Station Hacks 4 | . . . 2 . 2 . . . Scan Component 2 | . . . 1 . 1 . . . Repair 2 | . . . 1 . 1 . . . Recycling Unit Hacks 1 | . 1 . . . . . . . Report Inventory 1 | . 1 . . . . . . . Scanalyzer . | . . . . . . . . . Garrison Access Hacks . | . . . . . . . . . Unauthorized Hacks . | . . . . . . . . . Terminals . | . . . . . . . . . Fabricators . | . . . . . . . . . Repair Stations . | . . . . . . . . . Recycling Units . | . . . . . . . . . Scanalyzers . | . . . . . . . . . Garrison Access . | . . . . . . . . . Data Cores Recovered . | . . . . . . . . . Used . | . . . . . . . . . Hacking Detections 11 | . 3 . 3 3 1 . . 1 Full Trace Events 1 | . . . 1 . . . . . Feedback Events . | . . . . . . . . . Feedback Blocked . | . . . . . . . . . Robot Schematics Acquired . | . . . . . . . . . Robots Built . | . . . . . . . . . Authchips . | . . . . . . . . . Time . | . . . . . . . . . Total Robot Build Rating . | . . . . . . . . . Part Schematics Acquired . | . . . . . . . . . Parts Built . | . . . . . . . . . Authchips . | . . . . . . . . . Time . | . . . . . . . . . Total Part Build Rating . | . . . . . . . . . Parts Repaired 2 | . . . 1 . 1 . . . Time 57 | . . . 38 . 19 . . . Parts Recycled . | . . . . . . . . . Recycled Matter . | . . . . . . . . . Retrieved Matter . | . . . . . . . . . Retrieved Components . | . . . . . . . . . Parts Scanalyzed . | . . . . . . . . . Part Schematics Acquired . | . . . . . . . . . Parts Damaged . | . . . . . . . . . Bothacking | -11 -10 -10 -9 -8 -7 -7 -6 -6 ------------ Run | Yrd Mat Min Mat Mat Fac DSF Fac Ext Used RIF Installer . | . . . . . . . . . Robots Hacked . | . . . . . . . . . Non-combat . | . . . . . . . . . Combat . | . . . . . . . . . Robot Hacks Applied . | . . . . . . . . . Relay Couplers Released . | . . . . . . . . . Fabnet Peak Effective % . | . . . . . . . . . Robots Rewired . | . . . . . . . . . Allies Hacked . | . . . . . . . . . Hacks Repelled . | . . . . . . . . . Allies | -11 -10 -10 -9 -8 -7 -7 -6 -6 -------- Run | Yrd Mat Min Mat Mat Fac DSF Fac Ext Total Allies 3 | . . 3 . . . . . . Largest Group 3 | . . 3 3 . . . . . Highest-Rated Group 40 | . . 40 40 . . . . . Highest-Rated Ally 16 | . . 16 16 . . . . . Total Orders 2 | . . 1 1 . . . . . FOLLOW 1 | . . . 1 . . . . . GUARD 1 | . . 1 . . . . . . Ally Attacks 20 | . . . 20 . . . . . Total Damage 233 | . . . 233 . . . . . Kills 1 | . . . 1 . . . . . Allies Corrupted . | . . . . . . . . . Allies Melted . | . . . . . . . . . Intel | -11 -10 -10 -9 -8 -7 -7 -6 -6 ------- Run | Yrd Mat Min Mat Mat Fac DSF Fac Ext Robot Analysis Total . | . . . . . . . . . Derelict Logs Recovered 2 | . . 2 . . . . . . Drone Launches . | . . . . . . . . . Drone Recoveries . | . . . . . . . . . Exploration | -11 -10 -10 -9 -8 -7 -7 -6 -6 ------------- Run | Yrd Mat Min Mat Mat Fac DSF Fac Ext Turns Passed 5268 | 235 1955 479 1368 592 177 59 165 238 Spaces Moved 4007 | 120 853 348 708 531 306 191 504 446 Core 27 | 3 2 . . . . . . 22 Treads 1018 | 117 205 . 527 169 . . . . Legs 600 | . 600 . . . . . . . Wheels 575 | . 46 348 181 . . . . . Hover . | . . . . . . . . . Flight 1787 | . . . . 362 306 191 504 424 Fastest Speed 26 | 50 80 125 125 29 26 29 29 29 Average Speed 97 | 157 168 125 146 68 27 29 29 32 Slowest Speed 305 | 160 240 125 240 305 29 29 29 200 Overloaded Moves . | . . . . . . . . . Propulsion Burnouts . | . . . . . . . . . Robots Hopped 12 | . . . . 7 1 . . 4 Cave-ins Triggered . | . . . . . . . . . Exploration Rate (%) 45 | 9 93 83 43 31 6 88 10 46 Regions Visited 8 Branch Regions 2 Pre-discovered Areas 1 | . . 1 . . . . . . Known Exits Taken 2 | . . . . 1 1 . . . Unknown Exits Taken 5 | 1 1 1 1 . . . 1 . Scrap Searched 1 | . . 1 . . . . . . Spaces Dug 15 | . 3 . 6 3 1 . 2 . Terrain Destroyed 308 | . 4 42 126 3 1 . 2 130 Melee 15 | . 3 . 6 3 1 . 2 . Projectile 1 | . 1 . . . . . . . AOE 292 | . . 42 120 . . . . 130 Terrain Rammed . | . . . . . . . . . Walls Destroyed . | . . . . . . . . . Machines Disabled . | . . . . . . . . . Actions | -11 -10 -10 -9 -8 -7 -7 -6 -6 --------- Run | Yrd Mat Min Mat Mat Fac DSF Fac Ext Total 4991 | 144 1234 376 891 719 393 194 518 522 Wait 496 | . 222 17 49 125 74 . . 9 Move 3976 | 119 852 347 707 516 303 190 503 439 Hop 11 | . . . . 7 1 . . 3 Pick Up 56 | 8 18 1 17 7 1 1 3 . Fast Attach 29 | 5 6 . 6 6 2 1 3 . Attach 36 | 2 6 . 6 14 1 . 2 5 Detach 2 | . . . . . . . . 2 Swap 36 | . 12 2 17 . 4 . . 1 Drop 51 | . 11 1 10 19 4 2 4 . Fire 204 | 10 91 6 67 18 . . . 12 Melee 30 | . 8 2 10 4 3 . 3 . Ram 1 | . 1 . . . . . . . Kick . | . . . . . . . . . Crush 12 | . 7 . 2 3 . . . . Escape Stasis 51 | . . . . . . . . 51 Rewire . | . . . . . . . . . Trap . | . . . . . . . . . Miscellaneous . | . . . . . . . . . Route ------- -11/Scrapyard -10/Materials (discovered 6 exits: *Mat x3 / [*Min x2] / [*Sub]) -10/Mines -9/Materials (discovered 2 exits: *Mat / [*Min]) -8/Materials (discovered 3 exits: *Fac x3) -7/Factory -7/DSF -6/Factory -6/Extension History --------- Turn | Location | Event 59 | -11/Scrapyard | Discovered new exit (range 16) 236 | -11/Scrapyard | Entered Materials 313 | -10/Materials | Build established: Mutant 386 | -10/Materials | Discovered new exit (range 11) 535 | -10/Materials | Lost 3 parts (1p1n1w) 681 | -10/Materials | Core integrity fell below 50% 696 | -10/Materials | Core integrity fell below 20% 699 | -10/Materials | Lost 3 parts (1p1n1w) 983 | -10/Materials | Build established: Scavenger-Mutant 1579 | -10/Materials | Discovered new exit (range 8) 1606 | -10/Materials | Discovered new exit (range 11) 1794 | -10/Materials | Discovered new exit (range 12) 1834 | -10/Materials | Discovered new exit (range 16) 1931 | -10/Materials | Build established: Mutant 1999 | -10/Materials | Discovered new exit (range 16) 2191 | -10/Materials | Entered Mines 2264 | -10/Mines | Learned Materials security intel 2527 | -10/Mines | Learned location of Storage (-7) 2538 | -10/Mines | Assisted by bots powering up and referring to "LRC-V3" 2656 | -10/Mines | Discovered new exit (range 10) 2670 | -10/Mines | Entered Materials 2670 | -9/Materials | Accompanied by 3 allies 2670 | -9/Materials | Evolved 2 slots: Propulsion x1, Utility x1 2702 | -9/Materials | Discovered new exit (range 12) 2816 | -9/Materials | Lost 3 allies 3335 | -9/Materials | Discovered new exit (range 10) 3710 | -9/Materials | Repaired Adv. Treads 4038 | -9/Materials | Entered another Materials area 4038 | -8/Materials | Evolved 2 slots: Utility x2 4327 | -8/Materials | Build established: Scavenger-Mutant 4468 | -8/Materials | Lost 7 parts (1p3n1u2w) 4494 | -8/Materials | Identified exit to Factory 4630 | -8/Materials | Entered Factory 4630 | -7/Factory | Evolved 2 slots: Propulsion x1, Utility x1 4664 | -7/Factory | Repaired Cesium-ion Thruster 4807 | -7/Factory | Identified exit to DSF 4807 | -7/Factory | Entered DSF 4824 | -7/DSF | Discovered new exit (range 15) 4836 | -7/DSF | Additional patrols routed to DSF 4866 | -7/DSF | Entered Factory 4866 | -6/Factory | Evolved 2 slots: Power x1, Utility x1 4966 | -6/Factory | Build established: Sprinter 5027 | -6/Factory | Discovered new exit (range 16) 5031 | -6/Factory | Entered Extension 5077 | -6/Extension | Spotted B-75 Beast 5134 | -6/Extension | Disrupted transfer network 5254 | -6/Extension | Core integrity fell below 50% 5265 | -6/Extension | Core integrity fell below 20% 5267 | -6/Extension | Spotted B-75 Beast 5269 | -6/Extension | Destroyed by Y-54 Guardian with Gatling Laser Last Messages --------------- 05241_ Field strength at 22. 05242_ Field strength at 6. 05243_ Stasis field depleted. 05243_ Imp. Propulsion Shielding destroyed. 05243_ Xenon Bombardment Thruster destroyed. 05243_ Acquired 115 matter. 05243_ Xenon Bombardment Thruster destroyed. 05244_ Cesium-ion Thruster destroyed. 05244_ Critical hit (Burn: +37). 05249_ Adv. Weight Redist. System destroyed. 05249_ S-27 Virus destroyed. 05253_ System corrupted: Matter fused (-8). 05254_ Cesium-ion Thruster destroyed. 05254_ Triggered Heavy Explosive Trap. 05254_ An explosion rips through the floor. 05254_ S-27 Virus destroyed. 05260_ Cesium-ion Thruster destroyed. 05260_ Lgt. Fission Core destroyed. 05263_ R-10 Processor collects VTOL Module. 05265_ Machine disabled. Map ----- +----------------------------------------------------+ | ????????? ??? #????????????????????????????? | | ##??????? ???# #????????????????????????????? | | T##???####/#???# ####?????????????????????????? | | #???# #???# #?????????????????????????? | | #???# #???# #?????????????????????????? | | ###### #####" ""#?????????????????????????? | | " ""#?????????????????????????? | | #########+##### = T"#?????????????????????????? | | #?????# T## ""#?????????????????????????? | | #?????##"### ""#?????????????????????????? | | ###??????????# #?????????????????????????? | | ?????????????# #?????????????????????????? | | ?????????????# #?????????????????????????? | | ?????????????## % #?????????????????????????? | | ??????????????## #?????????????????????????? | | ????????????####+##"## #?????????????????????????? | | ????????????# # #?????????????????????????? | | ????????????# / #?????????????????????????? | | ????????????# # #?????????????????????????? | | ????????????# # #?????????????????????????? | | ????????????########## #?????????????????????????? | | ?????????????????????# #?????????????????????????? | | ?????????????????????# #??##?????????????????????? | | ???????????????????###s### ## ### #??????????????? | | ???????????????????# s ""Y Y "" ""?????????????? | | ???????????????????# s @ " " #????????????? | | ???????????????????# #????????????? | | ???????????????????# #????????????? | | #################### #????????????? | | w ??????????? | | ??????????? | | ??????????? | | ??????????? | | ???????????? | | #################### BB BB ##???????????? | | ???????????????????# BB BB #????????????? | | ???????????????????# #????????????? | | ???????????????????# ??????????????? | | ???????????????????# ????????????????? | | ???????????????????######T#"""???????????????????? | | ?????????????????????????????????????????????????? | | ?????????????????????????????????????????????????? | | | | | | | | | | | | | | | | | +----------------------------------------------------+ Best States ------------- Heat Dissipation 45 Energy Generation 23 Energy Capacity 400 Matter Stores 380 Matter Capacity 400 Sight Range 20 Robot Scan Range 14 Terrain Scan Range 16 Terrain Scan Density 85 Additional Mass Support 9 Base Temperature (-) 100 Armor Coverage 225 Propulsion Shielding 66 Utility Shielding 66 Evasion (%) 64 Targeting Accuracy 6 Target Analysis 5 Recoil Reduction 3 Item Schematics ----------------- None Robot Schematics ------------------ None Fabricated ------------ Nothing Alien Tech Used ----------------- None Achievements -------------- Fist Fight Challenges ------------ None Game ------ Seed GaussIntegratedRedirector Manual? 0 Play Time 01:24:03 Cumulative 19.0 hours Start 2024.05.17 @ 15:33:09 End 2024.05.17 @ 17:03:28 Sessions 1 Manual Loads 0 Difficulty Rogue Special Mode None Game No. 37 Rogue 37 Adventurer 0 Explorer 0 Win Type - Total 0 Types 0/0/0/0/0/0/0/0/0 Lore% 15 Gallery% 16 Achievement% 18 Wizard Run 0 Options --------- Layout 0 ASCII 0 Keyboard 0 Movement Arrows Keybinds 0 Fullscreen 2 Font 18/SmallcapsGlow Map View 76x50 Zoom Use 0% Tactical HUD 1 Map Filters NONE Filters NONE Steam 1 RUN: fd7261d7-f8b8-41a5-9d27-0999d3418dfd